bitfinex/quotes_BTCUSD_20220109
["timestamp","ask_amount","ask_price","bid_price","bid_amount"]
[1641745992956,0.06358357,41785.0,41777.0,0.10785]
[1641745993358,0.06358357,41785.0,41778.0,0.07394165]
[1641745993757,0.07458357,41785.0,41778.0,0.07394165]
[1641745994256,0.011,41785.0,41778.0,0.07394165]
[1641745995058,0.27239074,41786.0,41778.0,0.07394165]
[1641745995463,0.00021087,41785.0,41779.0,0.048]
[1641745995713,0.00021087,41785.0,41781.0,0.30810177]
[1641745995913,0.00021087,41785.0,41782.0,0.10912721]
[1641745996217,0.00021087,41785.0,41783.0,0.048]
[1641745996617,0.00021087,41785.0,41784.0,0.27189254]
[1641745996814,0.01320681,41786.0,41784.0,0.43956154]
[1641745997015,0.00020681,41786.0,41784.0,0.43956154]
[1641745997614,0.00020681,41786.0,41784.0,0.82857649]
[1641745997814,0.00087843,41793.0,41784.0,0.86057649]
[1641745998214,0.50730841,41794.0,41784.0,1.11623537]
[1641745998215,0.00020693,41787.0,41784.0,1.11623537]
[1641745998514,0.00020693,41787.0,41784.0,0.47156154]
[1641745998716,0.00020693,41787.0,41784.0,0.199669]
[1641745999118,0.00020693,41787.0,41784.0,0.048]
[1641745999318,0.60730841,41794.0,41784.0,0.048]
[1641745999555,0.05,41793.0,41784.0,0.048]
[1641745999755,0.05,41793.0,41784.0,0.34545435]
[1641745999756,0.45749236,41793.0,41784.0,0.34545435]
[1641745999954,0.40749236,41793.0,41785.0,0.25440218]
[1641746000156,0.40749236,41793.0,41788.0,0.059834]
[1641746000354,0.25659731,41794.0,41789.0,0.12229658]
[1641746000355,0.008,41794.0,41789.0,0.12229658]
[1641746001057,0.40749236,41795.0,41789.0,0.12229658]
[1641746001260,0.83345541,41796.0,41789.0,0.12229658]
[1641746001261,0.32342263,41796.0,41789.0,0.12229658]
[1641746001456,0.00010805,41794.0,41789.0,0.12229658]
[1641746001856,0.00010805,41794.0,41789.0,0.048]
[1641746002657,0.00021494,41794.0,41789.0,0.048]
[1641746003508,0.00021494,41794.0,41790.0,0.059832]
[1641746003707,0.00021494,41794.0,41791.0,0.048]
[1641746003906,0.00821494,41794.0,41792.0,0.00121429]
[1641746004105,0.40829342,41797.0,41793.0,0.748]
[1641746004313,0.39882687,41798.0,41797.0,0.0012137]
[1641746004507,0.39882687,41798.0,41797.0,0.33940075]
[1641746004705,0.39882687,41798.0,41797.0,0.67910638]
[1641746004905,0.00441001,41799.0,41797.0,0.67910638]
[1641746004906,0.0042,41799.0,41797.0,0.67910638]
[1641746005110,0.76497045,41800.0,41798.0,1.1]
[1641746005307,0.0001,41800.0,41799.0,1.65313642]
[1641746005511,0.0001,41814.0,41808.0,0.58187269]
[1641746005712,0.01307391,41826.0,41824.0,0.00120872]
[1641746005909,0.01307391,41826.0,41824.0,0.04920872]
[1641746005910,0.26791033,41826.0,41824.0,0.04920872]
[1641746006108,0.26791033,41826.0,41824.0,0.04835872]
[1641746006309,0.01307391,41826.0,41824.0,0.04792872]
[1641746006608,0.95898404,41827.0,41824.0,0.04792872]
[1641746007063,0.9591989,41827.0,41824.0,0.04792872]
[1641746007264,0.9591989,41827.0,41825.0,0.00127296]
[1641746007466,0.00135742,41835.0,41826.0,0.64688]
[1641746007665,0.00459894,41839.0,41834.0,0.00123038]
[1641746007866,0.13041001,41837.0,41835.0,0.048]
[1641746008265,0.00041001,41837.0,41835.0,0.048]
[1641746008666,0.00459894,41839.0,41835.0,0.048]
[1641746008967,0.00041001,41842.0,41836.0,0.167521]
[1641746009166,0.00041001,41842.0,41837.0,0.048]
[1641746009469,0.00041001,41842.0,41839.0,0.13397604]
[1641746009666,0.00041001,41842.0,41839.0,0.18197604]
[1641746010268,0.00041001,41842.0,41840.0,0.5]
[1641746010465,0.00041001,41842.0,41841.0,0.048]
[1641746011508,0.32101916,41842.0,41841.0,0.548]
[1641746011708,0.32101916,41842.0,41841.0,0.048]
[1641746011912,1.94544167,41842.0,41841.0,0.048]
[1641746012111,2.49613652,41842.0,41841.0,0.048]
[1641746012308,1.59613652,41842.0,41841.0,0.048]
[1641746012509,1.20880852,41842.0,41841.0,0.048]
[1641746012709,1.00880852,41842.0,41841.0,0.048]
[1641746012910,1.44613652,41842.0,41841.0,0.048]
[1641746013110,1.59613652,41842.0,41841.0,0.048]
[1641746013611,1.59613652,41842.0,41831.0,0.00021488]
[1641746013811,1.59613652,41842.0,41832.0,0.048]
[1641746013812,0.25483642,41841.0,41832.0,0.048]
[1641746014013,0.1,41837.0,41831.0,0.00021488]
[1641746014215,0.059792,41834.0,41831.0,0.00021488]
[1641746014476,0.83826701,41833.0,41831.0,0.00021488]
[1641746014681,1.24310343,41833.0,41831.0,0.00042561]
[1641746014877,1.39770716,41832.0,41831.0,0.00021073]
[1641746015082,2.15546227,41832.0,41831.0,0.00021073]
[1641746015679,2.15466227,41832.0,41831.0,0.00021073]
[1641746015877,2.15466227,41832.0,41829.0,0.00019753]
[1641746016079,0.387328,41831.0,41829.0,0.00019753]
[1641746016278,0.56733427,41832.0,41829.0,0.00019753]
[1641746016479,0.80678853,41832.0,41829.0,0.00019753]
[1641746016681,0.56733427,41832.0,41829.0,0.00019753]
[1641746016879,0.23616429,41831.0,41829.0,0.00019753]
[1641746017080,0.400094,41829.0,41828.0,0.00019754]
[1641746017283,0.67169386,41829.0,41828.0,0.00019754]
[1641746017481,0.27169386,41829.0,41828.0,0.00019754]
[1641746017881,0.29069386,41829.0,41828.0,0.00019754]
[1641746018080,0.019094,41829.0,41826.0,0.00019755]
[1641746018913,0.25827557,41825.0,41823.0,0.119558]
[1641746019312,0.30993406,41828.0,41823.0,0.119558]
[1641746019915,0.31493406,41828.0,41823.0,0.165558]
[1641746020713,0.29993406,41828.0,41823.0,0.165558]
[1641746021115,0.29493406,41828.0,41823.0,0.119558]
[1641746021314,9.4e-05,41829.0,41823.0,0.119558]
[1641746021966,0.004094,41829.0,41824.0,0.048]
[1641746022568,0.004094,41829.0,41827.0,0.119541]
[1641746023266,9.4e-05,41829.0,41827.0,0.119541]
[1641746023969,0.3087397,41839.0,41827.0,0.140541]
[1641746024366,0.00085621,41839.0,41828.0,0.05977004]
[1641746024670,0.0021379,41840.0,41827.0,0.021]
[1641746025066,0.00085888,41840.0,41831.0,0.119537]
[1641746025468,0.30071395,41839.0,41831.0,0.119537]
[1641746026315,0.02,41840.0,41831.0,0.119537]
[1641746026515,0.02,41840.0,41832.0,0.048]
[1641746026714,0.02,41840.0,41835.0,0.119525]
[1641746026914,0.02,41840.0,41836.0,0.048]
[1641746027116,0.01113927,41843.0,41836.0,0.048]
[1641746027314,0.33031379,41843.0,41836.0,0.048]
[1641746027714,0.043,41841.0,41836.0,0.048]
[1641746027918,0.048,41841.0,41836.0,0.064]
[1641746028114,0.048,41841.0,41838.0,0.059765]
[1641746028313,0.04821359,41841.0,41838.0,0.059765]
[1641746028714,0.04821359,41841.0,41839.0,0.048]
[1641746029315,0.04321359,41841.0,41834.0,0.048]
[1641746029564,0.30859037,41835.0,41834.0,0.048]
[1641746029863,0.59906352,41835.0,41834.0,0.048]
[1641746030063,0.54906352,41835.0,41834.0,0.048]
[1641746030263,0.54906352,41835.0,41830.0,0.059775]
[1641746031064,0.54906352,41835.0,41827.0,0.05999388]
[1641746031065,0.3356851,41834.0,41827.0,0.05999388]
[1641746031267,0.3356851,41834.0,41827.0,0.00021488]
[1641746031467,0.48860291,41833.0,41827.0,0.00042975]
[1641746031666,0.10127491,41833.0,41827.0,0.00021487]
[1641746031867,0.00127491,41833.0,41827.0,0.00021487]
[1641746032270,0.012,41834.0,41827.0,0.00021487]
[1641746032566,0.0045,41834.0,41827.0,0.00042145]
[1641746032768,0.00104169,41833.0,41827.0,0.00020658]
[1641746032971,0.00104169,41833.0,41827.0,0.05998558]
[1641746034011,0.00804169,41833.0,41827.0,0.05998558]
[1641746035211,0.00104169,41833.0,41827.0,0.05998558]
[1641746036012,0.00204169,41833.0,41827.0,0.10098558]
[1641746036312,0.00204169,41833.0,41828.0,0.059771]
[1641746036512,0.00204169,41833.0,41830.0,0.059771]
[1641746036712,0.2,41837.0,41830.0,0.059771]
[1641746037163,0.00020567,41834.0,41830.0,0.059771]
[1641746037862,0.00129759,41833.0,41830.0,0.059771]
[1641746038064,0.00129759,41833.0,41830.0,0.084771]
[1641746038866,0.30498926,41841.0,41830.0,0.084771]
[1641746039067,0.27330142,41837.0,41830.0,0.025]
[1641746039370,0.24535989,41831.0,41822.0,0.12657435]
[1641746039666,0.27330142,41837.0,41828.0,0.33225012]
[1641746040067,0.00129697,41839.0,41830.0,0.059776]
[1641746040712,0.23813812,41839.0,41830.0,0.059776]
[1641746041108,0.10129697,41839.0,41830.0,0.059776]
[1641746041313,0.043,41841.0,41830.0,0.33432448]
[1641746041512,0.00021307,41837.0,41833.0,0.27114472]
[1641746041711,0.00021307,41837.0,41835.0,0.059766]
[1641746041915,0.04321307,41841.0,41835.0,0.059766]
[1641746042711,0.28345547,41837.0,41835.0,0.059766]
[1641746042911,0.04321307,41841.0,41835.0,0.059766]
[1641746043211,0.03821307,41841.0,41835.0,0.059766]
[1641746044013,0.33596107,41841.0,41835.0,0.066766]
[1641746045264,0.32496107,41841.0,41835.0,0.059766]
[1641746045666,0.24099905,41840.0,41835.0,0.059766]
[1641746046068,0.32496107,41841.0,41835.0,0.081766]
[1641746046266,0.00021255,41840.0,41835.0,0.081766]
[1641746047366,0.00021254,41840.0,41835.0,0.059766]
[1641746047967,0.00021254,41840.0,41835.0,0.079766]
[1641746049212,0.00021254,41840.0,41834.0,0.048]
[1641746049613,0.45372956,41838.0,41834.0,0.048]
[1641746049812,0.55372956,41838.0,41834.0,0.048]
[1641746050012,0.60372956,41838.0,41834.0,0.031]
[1641746050213,0.27667515,41835.0,41834.0,0.031]
[1641746051216,0.27667515,41835.0,41833.0,0.00020658]
[1641746051813,0.5951689,41835.0,41832.0,0.00020658]
[1641746052063,0.55372956,41838.0,41833.0,0.025]
[1641746052264,0.15,41838.0,41833.0,0.025]
[1641746052462,0.2,41838.0,41833.0,0.025]
[1641746052663,0.00020438,41839.0,41834.0,0.05977]
[1641746052864,0.00040876,41839.0,41834.0,0.05977]
[1641746053066,0.00020438,41839.0,41834.0,0.05977]
[1641746053966,0.05031001,41843.0,41841.0,0.44450786]
[1641746054166,0.387328,41842.0,41834.0,0.07477]
[1641746054367,0.00031001,41843.0,41834.0,0.07477]
[1641746054567,0.25644609,41840.0,41834.0,0.07477]
[1641746054967,0.25644609,41840.0,41836.0,0.00020702]
[1641746055368,0.25644609,41840.0,41836.0,0.05997402]
[1641746056011,0.25644609,41840.0,41836.0,0.07297402]
[1641746056211,0.25644609,41840.0,41836.0,0.01320702]
[1641746056416,0.00020458,41841.0,41836.0,0.01320702]
[1641746057212,0.00040916,41841.0,41836.0,0.00041404]
[1641746057415,0.26533078,41841.0,41836.0,0.00020702]
[1641746057815,0.00020458,41841.0,41836.0,0.00020702]
[1641746058016,0.00020458,41841.0,41837.0,0.059765]
[1641746059462,0.00020368,41843.0,41837.0,0.05997188]
[1641746059864,0.00020368,41843.0,41840.0,0.05975]
[1641746060263,0.00020368,41843.0,41841.0,0.048]
[1641746060464,0.00020368,41843.0,41842.0,0.33965147]
[1641746060665,0.0002037,41844.0,41842.0,0.66691677]
[1641746061062,0.0002037,41844.0,41842.0,0.3272653]
[1641746061264,0.0002037,41844.0,41843.0,0.059747]
[1641746061462,0.0002037,41844.0,41843.0,0.107747]
[1641746061668,0.0002037,41845.0,41843.0,0.107747]
[1641746062062,0.0002037,41845.0,41843.0,0.119747]
[1641746062865,0.0002037,41846.0,41844.0,0.00120926]
[1641746063064,0.0002037,41846.0,41845.0,0.948]
[1641746063316,0.0002037,41846.0,41845.0,1.64779152]
[1641746063916,0.02077872,41847.0,41845.0,1.69901867]
[1641746064122,0.01577872,41847.0,41845.0,0.76501867]
[1641746064320,0.01577872,41847.0,41845.0,0.97475867]
[1641746064519,0.01577872,41847.0,41845.0,1.02475867]
[1641746064918,0.01577872,41847.0,41845.0,1.30247439]
[1641746065118,0.01577872,41847.0,41845.0,1.02475867]
[1641746065318,0.01577872,41847.0,41845.0,0.44388772]
[1641746065518,0.01577872,41847.0,41846.0,0.13628369]
[1641746065818,0.01577872,41847.0,41846.0,1.16755427]
[1641746066019,0.01577872,41847.0,41846.0,1.01657403]
[1641746066218,0.11527001,41850.0,41846.0,0.78867216]
[1641746066419,0.11527001,41850.0,41847.0,0.23892082]
[1641746066619,0.00021001,41853.0,41848.0,0.048]
[1641746066821,0.00163681,41857.0,41855.0,7.79200151]
[1641746067072,0.16332001,41856.0,41855.0,7.79200151]
[1641746067273,0.15832001,41856.0,41855.0,7.78700151]
[1641746067474,0.25832001,41856.0,41855.0,7.78700151]
[1641746067674,0.15832001,41856.0,41855.0,7.78700151]
[1641746067873,0.30228515,41859.0,41857.0,0.35114044]
[1641746068076,0.03330491,41859.0,41857.0,0.34998044]
[1641746068275,0.26929025,41858.0,41857.0,0.34998044]
[1641746068475,0.29636625,41858.0,41857.0,0.34960044]
[1641746068674,0.24636625,41858.0,41857.0,0.34960044]
[1641746069075,0.23263161,41858.0,41857.0,0.34960044]
[1641746069281,0.3473782,41859.0,41857.0,0.34960044]
[1641746069676,0.4473782,41859.0,41857.0,0.34960044]
[1641746069877,0.4973782,41859.0,41857.0,0.34960044]
[1641746070077,0.5473782,41859.0,41857.0,0.35060044]
[1641746070280,1.1,41857.0,41855.0,6.86888634]
[1641746070479,1.58481286,41856.0,41855.0,6.61254562]
[1641746070735,0.56181323,41856.0,41855.0,5.11014562]
[1641746070929,0.36884438,41855.0,41837.0,0.3866887]
[1641746071129,0.059768,41848.0,41836.0,0.219523]
[1641746071328,0.059768,41848.0,41836.0,0.1]
[1641746071530,0.32674514,41848.0,41834.0,0.2]
[1641746071729,0.26697714,41848.0,41841.0,0.1]
[1641746072036,0.43855446,41848.0,41841.0,0.1]
[1641746072430,0.53855446,41848.0,41841.0,0.1]
[1641746072629,0.53855446,41848.0,41837.0,0.2586665]
[1641746072829,0.53855446,41848.0,41845.0,0.1]
[1641746073029,0.29292067,41847.0,41845.0,0.1]
[1641746073834,0.29292067,41847.0,41844.0,0.00021482]
[1641746074032,0.29292067,41847.0,41837.0,0.2586665]
[1641746074033,0.31092067,41847.0,41845.0,0.006]
[1641746074236,0.387328,41846.0,41845.0,0.006]
[1641746074669,0.018,41847.0,41845.0,0.006]
[1641746075067,0.018,41847.0,41846.0,0.1]
[1641746075266,0.25187715,41848.0,41841.0,0.1]
[1641746076071,0.05,41852.0,41841.0,0.004]
[1641746076266,0.014,41848.0,41845.0,0.1]
[1641746076567,0.014,41848.0,41841.0,0.104]
[1641746077270,0.014,41848.0,41842.0,0.00021483]
[1641746077467,0.24723899,41849.0,41842.0,0.00021483]
[1641746077670,0.34723899,41849.0,41842.0,0.00021483]
[1641746077867,0.29723899,41849.0,41844.0,0.1]
[1641746078069,0.29723899,41849.0,41842.0,0.00821483]
[1641746078070,0.35623899,41849.0,41842.0,0.00821483]
[1641746079317,0.34723899,41849.0,41842.0,0.00021483]
[1641746080118,0.36123899,41849.0,41842.0,0.00921483]
[1641746080320,0.26123899,41849.0,41842.0,0.00921483]
[1641746080519,0.26123899,41849.0,41848.0,0.1]
[1641746080718,0.26123899,41849.0,41843.0,0.1]
[1641746080920,0.26123899,41849.0,41842.0,0.00921483]
[1641746081317,0.24723899,41849.0,41842.0,0.00021483]
[1641746081964,0.35992102,41851.0,41842.0,0.00021483]
[1641746082165,0.30992102,41851.0,41842.0,0.00842146]
[1641746082367,0.00020107,41853.0,41849.0,0.1]
[1641746082570,0.387296,41852.0,41842.0,0.10820663]
[1641746082766,0.27392187,41853.0,41842.0,0.10820663]
[1641746082965,1.419,41852.0,41842.0,0.10820663]
[1641746083365,0.28361148,41848.0,41842.0,0.1]
[1641746083765,0.60502076,41848.0,41842.0,0.1]
[1641746083966,0.32140928,41848.0,41842.0,0.1]
[1641746084172,0.35240928,41848.0,41843.0,0.1]
[1641746084366,0.059763,41853.0,41850.0,0.46211551]
[1641746084566,0.28374812,41851.0,41843.0,0.1]
[1641746085171,0.34075222,41851.0,41842.0,0.004]
[1641746085367,0.34075222,41851.0,41841.0,0.05976]
[1641746085368,1.419,41853.0,41848.0,0.1]
[1641746085567,0.387296,41852.0,41844.0,0.1]
[1641746085819,1.419,41853.0,41844.0,0.1]
[1641746086019,1.269,41852.0,41844.0,0.1]
[1641746086219,0.25599263,41848.0,41844.0,0.105]
[1641746086621,0.29358101,41847.0,41846.0,0.00021482]
[1641746086920,0.68087701,41847.0,41846.0,0.00021482]
[1641746087320,0.29358101,41847.0,41846.0,0.00021482]
[1641746087724,0.29358101,41847.0,41844.0,0.10021469]
[1641746088121,0.29358101,41847.0,41844.0,0.00021469]
[1641746088724,0.1,41849.0,41844.0,0.00021469]
[1641746088924,1.369,41852.0,41844.0,0.1]
[1641746089125,1.419,41852.0,41844.0,0.1]
[1641746089562,0.31036526,41849.0,41844.0,0.1]
[1641746089766,0.41036526,41849.0,41844.0,0.1]
[1641746089965,0.50608255,41849.0,41846.0,0.00021468]
[1641746090564,0.387296,41848.0,41846.0,0.00021468]
[1641746090964,0.487296,41848.0,41846.0,0.00021468]
[1641746091164,1.269,41847.0,41845.0,0.00020663]
[1641746091466,0.72028464,41846.0,41845.0,0.00020663]
[1641746091664,0.2,41847.0,41845.0,0.00020663]
[1641746091865,0.15,41846.0,41845.0,0.00020663]
[1641746092065,0.062,41846.0,41845.0,0.00020663]
[1641746092267,0.062,41846.0,41843.0,0.00020663]
[1641746092465,0.387296,41845.0,41843.0,0.00020663]
[1641746092666,0.29935836,41844.0,41843.0,0.00020663]
[1641746092867,0.34935836,41844.0,41843.0,0.00020663]
[1641746093065,0.44935836,41844.0,41843.0,0.00020663]
[1641746093319,0.15,41844.0,41842.0,0.00020664]
[1641746093721,0.15,41844.0,41843.0,0.1]
[1641746094120,0.41480678,41844.0,41842.0,0.02920664]
[1641746094320,0.054,41844.0,41842.0,0.02920664]
[1641746094521,0.104,41844.0,41842.0,0.029]
[1641746094720,0.154,41844.0,41842.0,0.029]
[1641746095120,0.154,41844.0,41839.0,0.02920664]
[1641746095424,0.15,41844.0,41843.0,0.02920664]
[1641746095621,0.05,41844.0,41843.0,0.02920664]
[1641746096021,0.50833526,41845.0,41843.0,0.02920664]
[1641746096219,0.007,41844.0,41843.0,0.014]
[1641746096420,0.394296,41844.0,41843.0,0.014]
[1641746096621,0.78168364,41844.0,41843.0,0.014]
[1641746096820,0.39438764,41844.0,41843.0,0.014]
[1641746097062,0.107,41844.0,41843.0,0.014]
[1641746097263,0.107,41844.0,41843.0,0.04320664]
[1641746097466,0.35656125,41844.0,41843.0,0.02920664]
[1641746097662,1.62556125,41844.0,41843.0,0.02920664]
[1641746097863,0.25656125,41844.0,41841.0,0.02920664]
[1641746098166,0.1,41844.0,41841.0,0.00290234]
[1641746098364,0.4594,41844.0,41841.0,0.00290234]
[1641746098764,0.23623619,41842.0,41841.0,0.00290234]
[1641746098965,1.50523619,41842.0,41840.0,0.00290234]
[1641746099163,0.43623619,41842.0,41840.0,0.00290234]
[1641746099464,0.27080251,41847.0,41840.0,0.00290234]
[1641746099664,0.05,41842.0,41840.0,0.00290234]
[1641746099863,1.53980251,41847.0,41840.0,0.00290234]
[1641746100263,1.53980251,41847.0,41840.0,0.02590234]
[1641746100264,1.264,41845.0,41840.0,0.02590234]
[1641746100465,0.28160313,41844.0,41840.0,0.02590234]
[1641746100726,1.69128906,41843.0,41840.0,0.023]
[1641746100924,1.61529762,41841.0,41840.0,0.023]
[1641746101123,1.65259362,41841.0,41840.0,0.023]
[1641746101325,1.80259362,41841.0,41840.0,0.023]
[1641746101523,1.264,41840.0,41839.0,0.00021484]
[1641746101728,1.701296,41840.0,41839.0,0.00021484]
[1641746101926,0.02624896,41839.0,41834.0,0.2]
[1641746102124,0.387296,41838.0,41834.0,0.2]
[1641746102324,1.264,41837.0,41834.0,0.2]
[1641746102524,1.264,41835.0,41834.0,0.2]
[1641746102724,0.387296,41835.0,41834.0,0.2]
[1641746102924,0.15,41835.0,41834.0,0.20290234]
[1641746103125,0.25760134,41837.0,41834.0,0.20290234]
[1641746103325,0.25760134,41837.0,41835.0,0.3298943]
[1641746103525,0.25760134,41837.0,41834.0,0.20290234]
[1641746103823,0.66376033,41840.0,41834.0,0.20290234]
[1641746104226,0.016,41837.0,41834.0,0.20290234]
[1641746105487,0.5590521,41840.0,41834.0,0.20290234]
[1641746105688,1.69788037,41839.0,41834.0,0.20290234]
[1641746105889,0.25273172,41838.0,41834.0,0.20290234]
[1641746106087,0.31983809,41840.0,41837.0,0.00290234]
[1641746106289,0.387296,41839.0,41837.0,0.00290234]
[1641746106688,0.437296,41839.0,41837.0,0.00290234]
[1641746106889,0.587296,41839.0,41837.0,0.00290234]
[1641746107687,0.587296,41839.0,41836.0,0.00020678]
[1641746107688,1.856296,41839.0,41836.0,0.00020678]
[1641746107890,1.269,41837.0,41836.0,0.00020678]
[1641746108089,1.269,41837.0,41836.0,0.00041373]
[1641746108090,1.806296,41837.0,41836.0,0.00041373]
[1641746108322,1.856296,41837.0,41836.0,0.00020695]
[1641746108718,0.587296,41837.0,41836.0,0.00020695]
[1641746109319,1.856296,41837.0,41834.0,0.20020695]
[1641746109519,0.63993724,41836.0,41835.0,0.00290234]
[1641746109720,0.63993724,41836.0,41834.0,0.20020695]
[1641746110120,0.05,41835.0,41834.0,0.20020695]
[1641746110322,0.05,41835.0,41834.0,0.2]
[1641746110323,0.437296,41835.0,41834.0,0.2]
[1641746110620,1.806296,41835.0,41834.0,0.2]
[1641746111620,1.80754206,41835.0,41834.0,0.2]
[1641746111820,2.01527635,41835.0,41834.0,0.2]
[1641746112079,2.569,41833.0,41832.0,0.00020696]
[1641746112379,2.0055756,41833.0,41832.0,0.00020696]
[1641746112579,2.1055756,41833.0,41832.0,0.00041391]
[1641746112780,2.1055756,41833.0,41832.0,0.00020695]
[1641746112980,2.1653766,41833.0,41832.0,0.00020695]
[1641746113180,2.60704738,41833.0,41832.0,0.00020695]
[1641746113783,0.1196041,41832.0,41830.0,0.00020695]
[1641746113980,2.29337009,41831.0,41830.0,0.00020695]
[1641746114382,2.42811009,41831.0,41830.0,0.00020695]
[1641746115083,0.58852192,41829.0,41828.0,6.96e-06]
[1641746115284,0.58852192,41829.0,41811.0,0.38959104]
[1641746115285,0.00226991,41817.0,41811.0,0.38959104]
[1641746115482,0.00129363,41813.0,41811.0,0.38959104]
[1641746115919,0.00129363,41813.0,41811.0,0.3866887]
[1641746115920,0.84435649,41812.0,41811.0,0.3866887]
[1641746116123,1.04558854,41812.0,41811.0,0.3866887]
[1641746116321,2.65099258,41812.0,41808.0,0.58187269]
[1641746116520,0.00123045,41809.0,41808.0,0.58187269]
[1641746116718,1.27023045,41809.0,41808.0,0.58187269]
[1641746116918,1.47027723,41807.0,41806.0,0.25266484]
[1641746117119,0.00124726,41805.0,41802.0,0.00085979]
[1641746117317,0.387296,41804.0,41802.0,0.00085979]
[1641746117519,0.25692992,41803.0,41800.0,0.02485979]
[1641746117717,0.059836,41802.0,41800.0,0.02485979]
[1641746117919,1.52592992,41803.0,41800.0,0.02485979]
[1641746118122,0.25692992,41803.0,41802.0,0.00290234]
[1641746118318,1.04327345,41803.0,41802.0,0.00290234]
[1641746118523,1.369007,41803.0,41802.0,0.00290234]
[1641746119118,1.269007,41803.0,41802.0,0.00290234]
[1641746119319,1.319007,41803.0,41802.0,0.00290234]
[1641746119572,1.419007,41803.0,41802.0,0.00290234]
[1641746119775,2.688007,41803.0,41802.0,0.00290234]
[1641746119974,2.68615416,41803.0,41802.0,0.00290234]
[1641746120173,2.69815416,41803.0,41802.0,0.00290234]
[1641746120575,2.69815416,41803.0,41800.0,0.02276213]
[1641746120778,1.706296,41802.0,41800.0,0.02276213]
[1641746120978,0.26469348,41801.0,41800.0,0.02276213]
[1641746121176,0.69178819,41801.0,41800.0,0.02276213]
[1641746121379,1.96078819,41801.0,41800.0,0.02276213]
[1641746121575,2.06078819,41801.0,41800.0,0.02276213]
[1641746122177,0.549296,41801.0,41800.0,0.02276213]
[1641746122376,0.399296,41801.0,41800.0,0.02276213]
[1641746122581,0.012,41801.0,41800.0,0.02276213]
[1641746122979,0.012,41801.0,41800.0,0.09710331]
[1641746123224,0.012,41801.0,41800.0,0.02276213]
[1641746123426,0.00021465,41804.0,41800.0,0.09710331]
[1641746123625,0.00021465,41804.0,41800.0,0.02276213]
[1641746124031,0.00021465,41804.0,41801.0,0.0743311]
[1641746124225,0.01421465,41804.0,41801.0,0.0743311]
[1641746124428,0.01421465,41804.0,41801.0,0.1341481]
[1641746124826,0.01421465,41804.0,41800.0,0.02297707]
[1641746125428,0.00021466,41805.0,41802.0,0.3693839]
[1641746125627,0.00021466,41805.0,41803.0,0.318739]
[1641746125827,0.00021466,41805.0,41804.0,0.059812]
[1641746126226,0.014,41805.0,41804.0,0.32813114]
[1641746126426,0.014,41805.0,41804.0,0.64686014]
[1641746127475,0.00020647,41807.0,41804.0,0.64686014]
[1641746127675,0.00020647,41807.0,41805.0,0.31872]
[1641746127875,0.00020647,41807.0,41804.0,0.32813114]
[1641746128075,0.00020647,41807.0,41804.0,0.059812]
[1641746128276,0.003,41807.0,41802.0,0.119619]
[1641746128674,0.003,41807.0,41803.0,0.07386699]
[1641746129476,0.00020672,41807.0,41803.0,0.07386699]
[1641746129875,0.25331222,41806.0,41803.0,0.07386699]
[1641746130177,0.25331222,41806.0,41802.0,0.119619]
[1641746130376,0.25331222,41806.0,41800.0,0.02296909]
[1641746130829,0.25392207,41805.0,41801.0,0.0738668]
[1641746131030,0.30690906,41804.0,41800.0,0.02296909]
[1641746131229,1.57590906,41804.0,41800.0,0.02296909]
[1641746131429,1.269,41802.0,41800.0,0.02296909]
[1641746131632,0.387313,41801.0,41800.0,0.02296909]
[1641746132032,0.587313,41801.0,41800.0,0.02296909]
[1641746132229,0.590313,41801.0,41800.0,0.02296909]
[1641746132829,1.859313,41801.0,41800.0,0.02276213]
[1641746133228,1.709313,41801.0,41800.0,0.02276213]
[1641746133429,1.859313,41801.0,41800.0,0.02276213]
[1641746133631,1.856313,41801.0,41800.0,0.02276213]
[1641746134029,0.43630772,41799.0,41798.0,0.00020694]
[1641746134229,2.09262072,41799.0,41798.0,0.00020694]
[1641746134486,2.19384708,41799.0,41798.0,0.00020694]
[1641746134883,2.39384708,41799.0,41796.0,0.00020695]
[1641746135082,1.57133442,41797.0,41796.0,0.00020695]
[1641746135282,2.05994296,41797.0,41796.0,0.00020695]
[1641746135483,2.55340826,41797.0,41796.0,0.00020695]
[1641746135687,0.89094296,41797.0,41796.0,0.00020695]
[1641746136082,2.15994296,41797.0,41794.0,0.00150695]
[1641746136283,0.387313,41796.0,41794.0,0.00150695]
[1641746136683,0.487313,41796.0,41794.0,0.00150695]
[1641746136883,0.487313,41796.0,41791.0,0.00050695]
[1641746137085,0.1,41796.0,41793.0,0.00020696]
[1641746137283,0.387313,41795.0,41793.0,0.00020696]
[1641746137482,0.437313,41795.0,41793.0,0.00020696]
[1641746137683,1.806313,41795.0,41793.0,0.00020696]
[1641746138327,0.553313,41795.0,41792.0,0.00020669]
[1641746139330,0.553313,41795.0,41791.0,0.00071364]
[1641746139530,0.537313,41795.0,41791.0,0.00071364]
[1641746140431,0.165,41795.0,41791.0,0.00071365]
[1641746140729,0.065,41795.0,41791.0,0.00071365]
[1641746140929,0.015,41795.0,41791.0,0.00071365]
[1641746141531,0.05,41796.0,41791.0,0.00071365]
[1641746141730,0.00129554,41797.0,41791.0,0.00071365]
[1641746141973,0.10129554,41797.0,41795.0,0.00421109]
[1641746142173,0.387313,41796.0,41795.0,0.00421109]
[1641746142376,0.437313,41796.0,41795.0,0.00421109]
[1641746142574,0.587313,41796.0,41795.0,0.00421109]
[1641746142776,0.92562608,41796.0,41795.0,0.00421109]
[1641746142974,0.92562608,41796.0,41788.0,0.05975975]
[1641746143274,0.53831308,41796.0,41788.0,0.05975975]
[1641746143874,0.33831308,41796.0,41788.0,0.05975975]
[1641746144276,0.35331308,41796.0,41793.0,0.62204483]
[1641746144475,0.015,41796.0,41793.0,0.62204483]
[1641746144674,1.269,41795.0,41793.0,0.62204483]
[1641746144878,0.387313,41794.0,41793.0,0.62204483]
[1641746145279,1.806313,41794.0,41793.0,0.62204483]
[1641746145476,1.706313,41794.0,41793.0,0.62204483]
[1641746145726,1.806313,41794.0,41793.0,0.62204483]
[1641746146326,1.817313,41794.0,41793.0,0.62204483]
[1641746146528,0.42200058,41786.0,41782.0,0.40355335]
[1641746146726,1.817313,41794.0,41782.0,0.3163]
[1641746146727,1.4485514,41791.0,41782.0,0.3163]
[1641746146927,0.387313,41790.0,41783.0,0.07380583]